[Event "Marmaris Karya-18 GM-May 2022"]
[Site "Icmeler-Marmaris"]
[Date "2022.05.12"]
[Round "5.3"]
[White "Odeev, Handszar"]
[Black "Angun, Batu"]
[Result "1-0"]
[ECO "A90"]
[WhiteElo "2305"]
[BlackElo "2326"]
[Annotator "TA"]
[PlyCount "111"]
[EventDate "2022.05.11"]
[EventCountry "TUR"]
[SourceTitle "playchess.com"]
[Source "ChessBase"]
[SourceQuality "1"]
[TimeControl "5400+30"]

{[%evp 21,111,33,56,33,64,43,103,85,106,90,107,95,97,107,98,97,133,104,127,127,161,153,150,124,133,91,75,80,91,45,59,67,59,60,98,56,56,56,95,45,27,29,46,10,17,8,10,0,5,2,56,56,74,69,79,79,85,87,84,79,81,81,151,161,150,8,8,8,21,43,562,535,421,8,8,8,8,8,8,0,8,8,8,8,29944,29943,29957,11533,29978,29979,29981,29969]} 1. d4 {[%emt 0:01:00]} f5 {[%emt 0:05:00]} 2. Nf3 {[%emt 0:01:30]} Nf6 {[%emt 0:00:00]} 3. g3 {[%emt 0:01:30]} e6 {[%emt 0:00:00]} 4. Bg2 {[%emt 0:00:30]} d5 {[%emt 0:00:30]} 5. O-O {[%emt 0:00:30]} Bd6 {[%emt 0:00:30]} 6. c4 {[%emt 0:00:00]} c6 7. b3 {[%emt 0:00:00]} Qe7 {[%emt 0:01:00]} 8. a4 {[%emt 0:01:30]} Nbd7 {[%emt 0:03:30]} 9. Ba3 {[%emt 0:00:00]} Bxa3 {[%emt 0:00:30]} 10. Nxa3 {[%emt 0:00:00][%cal Bb1a3,Ba3c2,Bc2e1,Be1d3][%mdl 32]} O-O {[%emt 0:00:00]} 11. Nc2 {[%emt 0:02:30]} Ne4 {[%emt 0:04:00]} 12. Nce1 {[%emt 0:03:30] A90: Dutch Defence: Miscellaneous and Modern Stonewall (with ...Bd6).} Ndf6 {[%emt 0:00:30]} 13. Nd3 {[%emt 0:01:30]} Bd7 {[%emt 0:01:30]} ({Black should try} 13... c5 $14) 14. Nfe5 {[%emt 0:09:30] White is better.} Be8 {[%emt 0:00:30] [#]} 15. c5 $146 {[%emt 0:02:30]} ({Predecessor:} 15. f3 Nd6 16. Qd2 Nf7 17. e3 Nxe5 18. dxe5 Nd7 19. Rfc1 Rf7 20. c5 g5 21. b4 {1-0 (40) Garcia Palermo,C (2465)-Cecconi,G (2206) Arvier 2008}) 15... Bh5 {[%emt 0:02:30]} 16. Qc2 {[%emt 0:07:30] Against Nc3} Nd7 {[%emt 0:04:30]} 17. Nxd7 {[%emt 0:05:30]} Qxd7 {[%emt 0:02:30]} 18. b4 {[%emt 0:07:30]} g5 {[%emt 0:01:30]} 19. Rab1 {[%emt 0:01:30]} a6 {[%emt 0:01:30]} 20. Ne5 {[%emt 0:02:30]} Qe8 {[%emt 0:00:30]} 21. b5 {[%emt 0:17:30]} axb5 {[%emt 0:00:30]} 22. axb5 {[%emt 0:00:30]} cxb5 {[%emt 0:01:30]} 23. f3 {[%emt 0:00:30]} Nf6 {[%emt 0:00:00]} 24. Qd2 {[%emt 0:00:00]} h6 {[%emt 0:02:00]} 25. Qb4 {[%emt 0:06:00] 0x0.00209b80dcd1dp-1022s more active pieces.} (25. h4 $16 gxh4 26. g4 (26. Qxh6 hxg3 27. Rb3 Ra4 $16) (26. gxh4 Kh7 $11) 26... fxg4 27. Qxh6) 25... Nd7 $14 {[%emt 0:03:30]} 26. Nxd7 {[%emt 0:01:30]} (26. Qxb5 Nxe5 27. dxe5 Qc6 $11) 26... Qxd7 {[%emt 0:00:00]} 27. Qxb5 {[%emt 0:00:30]} Rf7 {[%emt 0:01:00]} 28. Qxd7 {[%emt 0:00:30]} Rxd7 {[%emt 0:00:00]} 29. Rb6 {[%emt 0:00:00]} Kf7 {[%emt 0:00:00]} 30. Rfb1 {[%emt 0:00:00]} (30. e4 $16) 30... Ra7 {[%emt 0:00:30]} 31. e3 {[%emt 0:00:30]} Ke7 {[%emt 0:00:30]} 32. Kf2 {[%emt 0:01:30]} Be8 $1 {[%emt 0:00:30]} 33. Bf1 {[%emt 0:00:30]} Rc7 {[%emt 0:00:30]} 34. R1b2 {[%emt 0:00:30]} Bc6 {[%emt 0:00:30]} 35. Bb5 {[%emt 0:01:30]} Bxb5 {[%emt 0:01:30]} ({Better is} 35... Kf6 $11) 36. R6xb5 $11 {[%emt 0:00:00][%mdl 4096] Endgame KRR-KRR} Kd7 {[%emt 0:00:30]} 37. Rb6 {[%emt 0:00:00]} Ke7 {[%emt 0:00:30]} 38. g4 {[%emt 0:01:30] Black must now prevent gxf5.} fxg4 {[%emt 0:00:30]} 39. fxg4 {[%emt 0:00:00]} Kf7 {[%emt 0:00:30]} 40. e4 {[%emt 0:03:00]} dxe4 {[%emt 0:00:30][%cal Oe6e5]} 41. Ke3 {[%emt 0:00:30]} e5 {[%emt 0:01:30]} (41... Ke7 $142) 42. d5 $16 {[%emt 0:03:30] [#] Hoping for R2b5.} (42. Rxh6 $6 exd4+ 43. Kxe4 (43. Kxd4 Ra4+ 44. Kd5 Rd7+ 45. Ke5 Kg7 $14) 43... Rxc5 $14) (42. dxe5 $6 Rxc5 43. Rf2+ (43. Rxh6 Rxe5 44. Rh7+ Kg6 $11) (43. Kxe4 Ra4+ 44. Kd3 Rd5+ 45. Kc3 Rc5+ 46. Kd3 Rd5+ 47. Kc3 Rc5+ 48. Kd3 $11) (43. Rxb7+ Rxb7 44. Rxb7+ Ke6 $11) 43... Ke7 $14) 42... Rxc5 {[%emt 0:01:30]} 43. Rxb7+ {[%emt 0:01:48]} (43. Rf2+ $16 Ke8 44. Re6+ (44. Kxe4 Ra4+ 45. Kxe5 Rc7 $14) (44. Rxh6 Rxd5 45. Kxe4 Rb5 $11) 44... Kd8 45. Kxe4) 43... Rxb7 $11 {[%emt 0:00:30]} 44. Rxb7+ $18 {[%emt 0:00:12] KR-KR} Kf6 {[%emt 0:00:00]} 45. Rb6+ {[%emt 0:00:30]} Kg7 $2 {[%emt 0:00:00][%mdl 8192]} (45... Ke7 $14) 46. Kxe4 {[%emt 0:00:30]} Rc2 {[%emt 0:00:30]} 47. Re6 $2 {[%emt 0:01:46]} (47. h3 $18 Rc3 48. Re6 (48. Kxe5 Rxh3 49. Rb7+ Kf8 $16) (48. d6 Kf6 $16)) 47... Rxh2 $11 {[%emt 0:00:30]} 48. Rxe5 {[%emt 0:00:19] Strongly threatening d6.} ({Don't do} 48. Kxe5 Kf7 $11) 48... Kf6 {[%emt 0:00:30] ( -> ...Re2+)} 49. Re6+ {[%emt 0:00:10]} Kf7 {[%emt 0:00:00]} 50. Ke5 {[%emt 0:03:01]} Re2+ {[%emt 0:01:00]} 51. Kd6 {[%emt 0:00:04]} Ra2 {[%emt 0:00:00]} 52. Re4 {[%emt 0:00:07] aiming for Kd7.} Ra6+ $2 {[%emt 0:00:00][%mdl 8192] [#]} (52... Rf2 $11) 53. Kc7 {[%emt 0:00:15]} h5 {[%emt 0:01:30]} 54. gxh5 {[%emt 0:00:44] Intending d6 and mate.} Kf6 {[%emt 0:00:30]} 55. d6 {[%emt 0:00:13]} Kf5 {[%emt 0:00:00]} 56. Re8 {Weighted Error Value: White=0.33/Black=0.58} 1-0

[Event "Marmaris Karya-18 GM-May 2022"]
[Site "Icmeler-Marmaris"]
[Date "2022.05.12"]
[Round "5.4"]
[White "Darban, Morteza"]
[Black "Ozdemir, Serhan Berat"]
[Result "1/2-1/2"]
[ECO "C41"]
[WhiteElo "2279"]
[BlackElo "2117"]
[Annotator "TA"]
[PlyCount "104"]
[EventDate "2022.05.11"]
[EventCountry "TUR"]
[SourceTitle "playchess.com"]
[Source "ChessBase"]
[SourceQuality "1"]
[TimeControl "5400+30"]

{[%evp 9,104,95,107,71,80,80,226,124,116,95,138,122,137,85,133,64,119,95,160,57,200,183,206,170,170,79,78,64,83,77,95,104,92,80,151,154,158,142,254,169,307,231,200,152,164,158,152,167,167,154,202,212,302,301,335,329,404,417,439,123,123,123,123,120,127,127,122,122,181,184,181,188,201,148,269,269,239,50,80,8,8,0,35,35,36,36,125,8,8,0,0,0,0,0,0,0,0]} 1. e4 {[%emt 0:03:00]} e5 {[%emt 0:03:00]} 2. Nf3 {[%emt 0:03:30]} d6 {[%emt 0:00:30]} 3. Bc4 {[%emt 0:00:30]} Qf6 {[%emt 0:03:30]} 4. Nc3 {[%emt 0:07:30]} c6 {[%emt 0:00:30]} 5. d4 {[%emt 0:07:30]} h6 {[%emt 0:09:30]} 6. h3 {[%emt 0:01:30] C41: Philidor Defence.} Ne7 {[%emt 0:06:30]} 7. Be3 {[%emt 0:12:30] [#]} b5 $146 {[%emt 0:06:30] [#]} (7... Ng6 $16) ({Predecessor:} 7... Ng6 8. Qd2 b5 9. Bb3 a5 10. a3 Bd7 11. Ne2 a4 12. Ba2 Be7 13. Ng3 Bf8 {1-0 (36) Fancy,S (1950)-Guterres,L (1779) Batumi 2018}) 8. Bb3 {[%emt 0:02:30]} (8. Bxb5 $1 $18 {[%cal Od1d3][%mdl 512] Black must now prevent Qd3!} Nd7 (8... Ng6 9. Ba4) 9. Be2) 8... Nd7 $16 {[%emt 0:09:30]} 9. a3 {[%emt 0:05:30]} a6 {[%emt 0:01:30]} 10. Qd2 {[%emt 0:01:30]} Ng6 {[%emt 0:27:30]} 11. Ne2 {[%emt 0:04:30]} (11. O-O-O $142) 11... Be7 {[%emt 0:03:30]} (11... c5 $142) 12. c3 {[%emt 0:07:30]} (12. O-O $16) 12... Bb7 {[%emt 0:02:30]} (12... c5 $14) 13. O-O {[%emt 0:05:30]} Rd8 {[%emt 0:16:43]} (13... c5 $142) 14. Rae1 {[%emt 0:01:30]} (14. a4 $1 $16) 14... Nb6 {[%emt 0:03:46]} ({Better is} 14... c5 $1 $14) 15. Ng3 $1 $18 {[%emt 0:00:30]} Nf4 {[%emt 0:00:06][%cal Of4h3] Prevents Nh5.} 16. Bxf4 {[%emt 0:01:30]} (16. Nf5 Ne6 17. Nh2 c5) 16... Qxf4 {[%emt 0:00:11]} 17. Qxf4 {[%emt 0:01:30]} (17. Qd1 $1 $18 {has better winning chances.} g6 18. Nf5 gxf5 19. g3) 17... exf4 $16 {[%emt 0:00:02]} 18. Nh5 {[%emt 0:00:30][%csl LRf4,LRg7]} g5 {[%emt 0:01:05]} 19. e5 $36 {[%emt 0:03:30][%cal Be4e5,Be5e6][%mdl 2080] And now exd6 would win. Keeping Black busy.} d5 {[%emt 0:01:48]} 20. e6 $1 {[%emt 0:00:30]} f6 {[%emt 0:01:15]} (20... O-O $2 21. exf7+ Rxf7 22. Re6 $18) 21. Nh2 {[%emt 0:01:30]} Nc8 {[%emt 0:01:00]} ({Black should try} 21... Ra8) 22. g3 {[%emt 0:01:30] White is more active.} Nd6 {[%emt 0:00:27]} 23. Bc2 {[%emt 0:00:00] Inhibits Ne4. Bg6+ is the strong threat.} Nc4 {[%emt 0:00:29]} (23... Rc8 $16 {was necessary.} 24. gxf4 Kd8) 24. Re2 {[%emt 0:00:00]} (24. gxf4 $6 Rc8 $16) 24... Rd6 {[%emt 0:00:30]} (24... Ra8 {keeps fighting.} 25. gxf4 Kd8) 25. Bf5 {[%emt 0:02:30]} Kd8 {[%emt 0:00:22]} 26. Kg2 {[%emt 0:00:30]} c5 {[%emt 0:00:12]} 27. Ng4 {[%emt 0:01:30]} (27. dxc5 d4+ 28. Kg1 Rd5 $11) 27... cxd4 {[%emt 0:00:12]} 28. cxd4 {[%emt 0:00:00]} Rb6 {[%emt 0:00:46]} 29. Bg6 {[%emt 0:05:00]} (29. Ngxf6 Rf8 30. gxf4 gxf4 $17) (29. Nhxf6 h5 30. Ne5 Bxf6 $15) 29... f5 {[%emt 0:00:42]} (29... b4 $16) 30. Bxf5 $18 {[%emt 0:00:30]} Bc8 {[%emt 0:00:41]} (30... Bc6 {is a better defense.} 31. gxf4 b4) 31. gxf4 {[%emt 0:04:31]} gxf4 {[%emt 0:00:10]} 32. Nxf4 {[%emt 0:00:52]} Rf8 {[%emt 0:00:39]} 33. Nxh6 {[%emt 0:04:07]} Rf6 {[%emt 0:00:15]} 34. Ng6 $2 {[%emt 0:07:04]} (34. Nf7+ $1 $18 {is the precise move to win.} Ke8 35. Nh5 $1 (35. Nxd5 Rxf5 36. Nxb6 Nxb6 $16) 35... Rxf5 36. Ng7+ Kf8 37. Nxf5 Rxe6 38. Rxe6 (38. Nxe7 Rxe2 39. Nxc8 Kxf7 $14) 38... Bxe6 39. Nxe7 Bxf7 40. Nc6) 34... Bxe6 $16 {[%emt 0:01:06]} 35. Nxe7 {[%emt 0:01:15][%cal Bg6e7,Be7d5,Bd5e3,Be3c4][%mdl 32]} Rxh6 {[%emt 0:00:18]} 36. Rxe6 {[%emt 0:00:57]} Rbxe6 {[%emt 0:00:31]} 37. Bxe6 {[%emt 0:00:07]} ({Worse is} 37. Nxd5 Rd6 38. Ne3 Rxd4 $15) 37... Rxe6 {[%emt 0:00:29]} 38. Nxd5 {[%emt 0:00:27][%mdl 4096] Endgame KRN-KRN} Rg6+ {[%emt 0:00:09]} (38... Nxb2 $16 39. Ne3 Re4) 39. Kh2 $18 {[%emt 0:00:46]} Nxb2 {[%emt 0:00:12] [#]} 40. Ne3 $1 {[%emt 0:00:28]} Kd7 {[%emt 0:00:59]} 41. f4 {[%emt 0:02:04]} Nc4 {[%emt 0:00:42] [#]} (41... Rd6 $16 42. d5 Na4) 42. Nxc4 $1 {[%emt 0:01:16]} bxc4 {[%emt 0:00:03] KR-KR} 43. f5 $2 {[%emt 0:00:03]} (43. Rc1 $18) 43... Rd6 $1 $14 {[%emt 0:00:59]} 44. f6 {[%emt 0:00:22]} (44. Kg3 $16) 44... Ke8 $11 {[%emt 0:00:15]} 45. Rd1 {[%emt 0:02:02]} Kf7 {[%emt 0:00:31]} 46. Kg3 {[%emt 0:00:04]} Kxf6 {[%emt 0:00:48]} 47. Kf4 {[%emt 0:00:16]} Rb6 {[%emt 0:00:22]} (47... Ke7 $1 $14) 48. Ke4 {[%emt 0:00:31]} ({White should play} 48. Rc1 $16) 48... Rb3 {[%emt 0:00:11][%csl LRa3,LRh3] The position is equal.} 49. d5 {[%emt 0:01:45]} Rxh3 {[%emt 0:00:21]} 50. d6 {[%emt 0:00:12]} Rd3 $1 {[%emt 0:00:11]} 51. Rxd3 {[%emt 0:00:48]} cxd3 {[%emt 0:00:04]} 52. Kxd3 {[%emt 0:00:21] Threatening mate with Kc4.} Ke6 {White really could win this.  Weighted Error Value: White=0.45/Black=0.34} 1/2-1/2

[Event "Marmaris Karya-18 GM-May 2022"]
[Site "Icmeler-Marmaris"]
[Date "2022.05.12"]
[Round "5.4"]
[White "Ozdemir, Serhan Berat"]
[Black "Odeev, Handszar"]
[Result "1/2-1/2"]
[ECO "C41"]
[WhiteElo "2117"]
[BlackElo "2305"]
[Annotator "TA"]
[PlyCount "104"]
[EventDate "2022.05.11"]
[EventCountry "TUR"]
[SourceTitle "playchess.com"]
[Source "ChessBase"]
[SourceQuality "1"]
[TimeControl "5400+30"]

{[%evp 9,104,100,104,81,76,61,205,133,119,91,132,143,116,107,140,62,135,86,155,55,218,222,231,174,172,89,75,75,78,87,111,100,112,66,158,148,152,122,268,166,286,231,191,149,181,175,151,162,183,157,190,194,319,318,315,306,426,414,418,114,112,121,124,137,132,124,124,133,177,155,183,177,223,206,286,267,234,28,22,0,0,0,31,31,31,31,129,8,8,0,0,0,0,0,0,0,0]} 1. e4 {[%emt 0:03:00]} e5 {[%emt 0:03:00]} 2. Nf3 {[%emt 0:03:30]} d6 {[%emt 0:00:30]} 3. Bc4 {[%emt 0:00:30]} Qf6 {[%emt 0:03:30]} 4. Nc3 {[%emt 0:07:30]} c6 {[%emt 0:00:30]} 5. d4 {[%emt 0:07:30]} h6 {[%emt 0:09:30]} 6. h3 {[%emt 0:01:30] C41: Philidor Defence.} Ne7 {[%emt 0:06:30]} 7. Be3 {[%emt 0:12:30] [#]} b5 $146 {[%emt 0:06:30]} (7... Ng6 $14) ({Predecessor:} 7... Ng6 8. Qd2 b5 9. Bb3 a5 10. a3 Bd7 11. Ne2 a4 12. Ba2 Be7 13. Ng3 Bf8 {1-0 (36) Fancy,S (1950)-Guterres,L (1779) Batumi 2018}) 8. Bb3 {[%emt 0:02:30] White is clearly better.} Nd7 {[%emt 0:09:30]} 9. a3 {[%emt 0:05:30]} a6 {[%emt 0:01:30]} 10. Qd2 {[%emt 0:01:30]} Ng6 {[%emt 0:27:30]} 11. Ne2 {[%emt 0:04:30]} Be7 {[%emt 0:03:30]} 12. c3 {[%emt 0:07:30]} (12. O-O $16) 12... Bb7 {[%emt 0:02:30]} ({Black should play} 12... c5 $14) 13. O-O {[%emt 0:05:30]} ({Better is} 13. O-O-O $1) 13... Rd8 {[%emt 0:16:43]} (13... c5 $142) 14. Rae1 {[%emt 0:01:30]} (14. a4 $1 $16) 14... Nb6 $2 {[%emt 0:03:46]} (14... c5 $1 $14) 15. Ng3 $1 $18 {[%emt 0:00:30]} Nf4 {[%emt 0:00:06][%cal Of4h3] Prevents Nh5.} 16. Bxf4 {[%emt 0:01:30]} (16. Nf5 $6 Bc8) 16... Qxf4 {[%emt 0:00:11]} 17. Qxf4 {[%emt 0:01:30]} (17. Qd1 $18 g6 18. Nf5 gxf5 19. g3) 17... exf4 $16 {[%emt 0:00:02]} 18. Nh5 {[%emt 0:00:30][%csl LRf4,LRg7]} g5 {[%emt 0:01:05]} 19. e5 $36 {[%emt 0:03:30][%cal Be4e5,Be5e6][%mdl 2080] Threatens to win with exd6. White is really pushing.} d5 {[%emt 0:01:48]} 20. e6 $1 {[%emt 0:00:30] Strongly threatening exf7+.} f6 {[%emt 0:01:15]} (20... O-O $2 21. exf7+ Rxf7 22. Re6 $18) 21. Nh2 {[%emt 0:01:30]} (21. g3 $16) 21... Nc8 {[%emt 0:01:00]} (21... a5 $14) 22. g3 {[%emt 0:01:30] White is more active.} Nd6 {[%emt 0:00:27]} 23. Bc2 {[%emt 0:00:00] Inhibits Ne4. aiming for Bg6+.} Nc4 {[%emt 0:00:29]} (23... Rc8 $16 24. gxf4 Kd8) 24. Re2 {[%emt 0:00:00]} (24. gxf4 $6 Ra8 $16) 24... Rd6 {[%emt 0:00:30]} (24... Rc8 $142 25. gxf4 Kd8) 25. Bf5 {[%emt 0:02:30]} Kd8 {[%emt 0:00:22]} 26. Kg2 {[%emt 0:00:30]} c5 {[%emt 0:00:12]} 27. Ng4 {[%emt 0:01:30]} (27. dxc5 d4+ 28. Kg1 Rd5 $11) 27... cxd4 {[%emt 0:00:12]} 28. cxd4 {[%emt 0:00:00]} Rb6 {[%emt 0:00:46]} 29. Bg6 {[%emt 0:05:00]} (29. Ngxf6 Rf8 30. gxf4 gxf4 $17) 29... f5 {[%emt 0:00:42]} 30. Bxf5 {[%emt 0:00:30]} Bc8 {[%emt 0:00:41]} (30... Nd6 $142) 31. gxf4 $18 {[%emt 0:04:31]} gxf4 {[%emt 0:00:10]} 32. Nxf4 {[%emt 0:00:52]} Rf8 {[%emt 0:00:39]} 33. Nxh6 {[%emt 0:04:07]} Rf6 {[%emt 0:00:15]} 34. Ng6 $2 {[%emt 0:07:04]} (34. Nf7+ $1 $18 Ke8 35. Nh5 $1 (35. Nxd5 Rxf5 36. Nxb6 Nxb6 $16) 35... Rxf5 36. Ng7+ Kf8 37. Nxf5 Rxe6 38. Rxe6 (38. Nxe7 Rxe2 39. Nxc8 Kxf7 $14) 38... Bxe6 39. Nxe7 Bxf7 40. Nc6) 34... Bxe6 $16 {[%emt 0:01:06]} 35. Nxe7 {[%emt 0:01:15][%cal Bg6e7,Be7d5,Bd5e3,Be3c4][%mdl 32]} Rxh6 {[%emt 0:00:18]} 36. Rxe6 {[%emt 0:00:57]} Rbxe6 {[%emt 0:00:31]} 37. Bxe6 {[%emt 0:00:07]} ({Worse is} 37. Nxd5 Rd6 38. Ne3 Rxd4 $15) 37... Rxe6 {[%emt 0:00:29]} 38. Nxd5 {[%emt 0:00:27][%mdl 4096] Endgame KRN-KRN} Rg6+ {[%emt 0:00:09]} 39. Kh2 {[%emt 0:00:46]} Nxb2 {[%emt 0:00:12] [#]} 40. Ne3 $1 {[%emt 0:00:28]} Kd7 {[%emt 0:00:59]} (40... Rg8 $142 41. h4 Nd3) 41. f4 {[%emt 0:02:04]} Nc4 {[%emt 0:00:42] [#]} 42. Nxc4 {[%emt 0:01:16]} bxc4 $18 {[%emt 0:00:03] KR-KR} 43. f5 $2 {[%emt 0:00:03]} (43. Rc1 $18) 43... Rd6 $1 $11 {[%emt 0:00:59]} 44. f6 {[%emt 0:00:22] f7 would kill now.} Ke8 {[%emt 0:00:15]} 45. Rd1 {[%emt 0:02:02]} Kf7 {[%emt 0:00:31]} 46. Kg3 {[%emt 0:00:04]} Kxf6 {[%emt 0:00:48]} 47. Kf4 {[%emt 0:00:16]} Rb6 {[%emt 0:00:22]} ({Black should try} 47... Ke7 $1 $14) 48. Ke4 {[%emt 0:00:31]} (48. Rc1 $16) 48... Rb3 {[%emt 0:00:11][%csl LRa3,LRh3] The position is equal.} 49. d5 {[%emt 0:01:45]} Rxh3 {[%emt 0:00:21]} 50. d6 {[%emt 0:00:12] Threatening mate with d7.} Rd3 $1 {[%emt 0:00:11]} 51. Rxd3 {[%emt 0:00:48]} cxd3 {[%emt 0:00:04]} 52. Kxd3 {[%emt 0:00:21] Intending Kc4 and mate.} Ke6 {[%emt 0:00:02] White really could win this.  Weighted Error Value: White=0.42/Black=0.38} 1/2-1/2

[Event "Marmaris Karya-18 GM-May 2022"]
[Site "Icmeler-Marmaris"]
[Date "2022.05.12"]
[Round "5.5"]
[White "Blesic, Vaso"]
[Black "Inci, Okan"]
[Result "0-1"]
[ECO "B36"]
[WhiteElo "2264"]
[BlackElo "1688"]
[Annotator "TA"]
[PlyCount "106"]
[EventDate "2022.05.11"]
[EventCountry "TUR"]
[SourceTitle "playchess.com"]
[Source "ChessBase"]
[SourceQuality "1"]
[TimeControl "5400+30"]

{[%evp 34,106,0,0,0,0,0,0,0,0,0,-8,-4,-13,-16,-25,-27,-25,-20,-20,-4,-4,-9,-72,-81,-216,-17,-23,-23,-116,-126,-120,-87,-98,-86,-565,-562,-562,-562,-512,-275,-29966,-29971,-29945,-5173,-29978,-29979,-29980,-29981,-29981,-29982,-29981,-29982,-29982,-29983,-29984,-29985,-29985,-29986,-29986,-29987,-29987,-29988,-29988,-29989,-29992,-29993,-29993,-29994,-29995,-29996,-29996,-29997,-29997,-29998]} 1. Nf3 {[%emt 0:03:00]} c5 {[%emt 0:05:00]} 2. c4 {[%emt 0:00:30]} g6 {[%emt 0:01:30]} 3. d4 {[%emt 0:04:30]} cxd4 {[%emt 0:00:30]} 4. Nxd4 {[%emt 0:00:30]} Nc6 {[%emt 0:05:30]} 5. e4 {[%emt 0:02:30]} Nf6 {[%emt 0:00:30]} 6. Nc3 {[%emt 0:00:30]} d6 {[%emt 0:00:00]} 7. Be2 {[%emt 0:01:30]} Nxd4 {[%emt 0:00:00]} 8. Qxd4 {[%emt 0:01:30]} Bg7 {[%emt 0:00:30]} 9. Be3 {[%emt 0:01:30]} O-O {[%emt 0:00:00]} 10. Qd2 {[%emt 0:02:30]} Be6 {[%emt 0:01:00]} 11. O-O {[%emt 0:00:30]} Qa5 {[%emt 0:00:30]} 12. Rac1 {[%emt 0:09:30]} Rfc8 {[%emt 0:00:00]} 13. b3 {[%emt 0:00:30]} a6 {[%emt 0:01:00]} 14. f3 {[%emt 0:04:30]} b5 {[%emt 0:06:30]} 15. Nd5 {[%emt 0:00:30]} Qxd2 {[%emt 0:00:30]} 16. Bxd2 {[%emt 0:00:30]} Nxd5 {[%emt 0:00:30]} 17. cxd5 {[%emt 0:00:30]} Bd4+ {[%emt 0:00:00]} 18. Kh1 {[%emt 0:00:30]} Bd7 {[%emt 0:00:00] B36: Sicilian: Maroczy Bind: Gurgenidze System.} 19. Rxc8+ {[%emt 0:02:30]} Rxc8 {[%emt 0:00:00]} 20. Rc1 {[%emt 0:00:30] Against Rc2} Rxc1+ {[%emt 0:00:00] The position is equal.} 21. Bxc1 $11 {[%emt 0:00:00][%mdl 4096] Endgame KBB-KBB} e6 {[%emt 0:12:30]} 22. dxe6 {[%emt 0:03:00]} Bxe6 {[%emt 0:01:30] [#]} 23. f4 $146 {[%emt 0:08:30]} ({Predecessor:} 23. g4 d5 24. Bd3 dxe4 25. Bxe4 a5 26. Bc6 a4 27. Bxb5 axb3 28. axb3 Bxb3 29. Bc6 Kg7 30. Kg2 Be6 {½-½ (30) Kantor,G (2514)-Bakhmatsky,V (2404) Tarvisio 2017}) 23... d5 {[%emt 0:06:30]} 24. Bf3 {[%emt 0:01:30]} dxe4 {[%emt 0:00:00]} 25. Bxe4 {[%emt 0:00:30]} a5 {[%emt 0:06:00]} 26. g3 {[%emt 0:21:30]} Bh3 {[%emt 0:04:30]} 27. Bg2 {[%emt 0:09:30]} Bf5 {[%emt 0:00:30]} 28. Bd5 {[%emt 0:01:30]} (28. Bc6 $11) 28... b4 $17 {[%emt 0:02:30]} 29. a3 {[%emt 0:00:30] [#]} (29. a4 $17) 29... Bh3 $2 {[%emt 0:00:00]} (29... a4 $1 $19 {And now ...bxa3 would win.} 30. Kg2 (30. bxa4 $2 b3 $19) (30. axb4 $2 axb3 31. b5 b2 $19) 30... Bc2 31. bxa4 b3) 30. axb4 $11 {[%emt 0:05:00]} axb4 {[%emt 0:00:00]} 31. f5 {[%emt 0:02:09]} (31. Bc4 $11) 31... Bxf5 $17 {[%emt 0:02:30]} 32. Kg2 {[%emt 0:00:09]} Kf8 {[%emt 0:19:30]} 33. Kf3 {[%emt 0:00:06]} Ke7 {[%emt 0:00:30]} 34. Be3 $2 {[%emt 0:00:20][%mdl 8192]} (34. g4 $17 Be6 35. Ke4) 34... Bxe3 $19 {[%emt 0:00:00]} 35. Kxe3 {[%emt 0:00:06] [#] KB-KB} Be6 $1 {[%emt 0:00:00]} 36. Kd4 {[%emt 0:00:30]} f5 {[%emt 0:00:30] Hoping for ...Bxd5.} 37. Bxe6 {[%emt 0:04:36]} (37. Bf3 $19) 37... Kxe6 {[%emt 0:00:00] KP-KP} 38. Kc5 {[%emt 0:00:04]} Ke5 {[%emt 0:00:00] ( -> ...g5)} 39. h4 {[%emt 0:06:59]} h6 {[%emt 0:01:30] Black mates.} 40. Kxb4 {[%emt 0:00:17] K3P-K3P} Kd4 {[%emt 0:00:30]} 41. Ka5 {[%emt 0:00:18]} g5 {[%emt 0:00:00]} 42. hxg5 {[%emt 0:00:14]} hxg5 {[%emt 0:00:00] KPP-KPP} 43. b4 {[%emt 0:00:15]} f4 {[%emt 0:00:00]} 44. gxf4 {[%emt 0:00:34]} gxf4 {[%emt 0:00:00] KP-KP} 45. b5 {[%emt 0:00:09]} Kc5 {[%emt 0:00:00]} ({And not} 45... f3 46. b6 $11) 46. b6 {[%emt 0:03:14]} Kc6 {[%emt 0:00:00]} 47. Ka6 {[%emt 0:01:43]} f3 {[%emt 0:00:30]} 48. b7 {[%emt 0:00:34]} f2 {[%emt 0:00:00]} ({Resist} 48... Kc7 49. Ka7 Kd7 50. b8=Q f2 51. Qf8 Ke6 52. Qxf2 Ke5 53. Qf3) 49. Ka7 {[%emt 0:00:59]} f1=Q {[%emt 0:00:00]} 50. b8=N+ {[%emt 0:00:25]} Kd6 {[%emt 0:00:30]} 51. Na6 {[%emt 0:00:20]} Qb5 {[%emt 0:00:30]} 52. Nb8 {[%emt 0:00:42]} Kc7 {[%emt 0:00:00][%csl Gc7][%cal Rb5b7]} 53. Na6+ {[%emt 0:00:13]} Kc8 {Weighted Error Value: White=0.58/Black=0.18 (very precise)} 0-1